bitfinex/quotes_ETHUSD_20250106
["timestamp","ask_amount","ask_price","bid_price","bid_amount"]
[1736175701667,0.0075,3673.5,3673.1,0.005]
[1736175701863,0.02720495,3673.6,3673.1,0.005]
[1736175701864,0.02720495,3673.6,3673.4,2.72225]
[1736175702064,0.02720495,3674.6,3673.5,0.272225]
[1736175702375,0.02720495,3674.6,3673.9,3.2719]
[1736175702575,2.72067,3675.6,3674.2,2.72167]
[1736175702737,0.0075,3675.0,3673.8,1.8303]
[1736175702935,2.72123,3674.9,3673.8,1.8303]
[1736175703136,0.0075,3674.6,3673.8,1.6163]
[1736175703498,0.0075,3674.6,3672.7,1.6435]
[1736175703499,0.02720495,3674.6,3672.7,1.6435]
[1736175703660,3.0,3674.4,3672.7,1.6435]
[1736175703992,2.72176,3674.1,3672.7,1.6435]
[1736175704210,0.0075,3673.9,3672.8,2.7227]
[1736175704339,0.0075,3673.9,3672.7,1.6435]
[1736175704340,0.0075,3673.7,3672.7,1.6435]
[1736175704548,0.0075,3673.7,3672.9,2.72262]
[1736175704837,0.02720495,3674.0,3673.3,2.72233]
[1736175705078,0.0075,3674.4,3673.5,1.5526]
[1736175705468,0.02720495,3674.3,3673.5,1.5526]
[1736175705635,0.02720495,3674.3,3673.1,0.277762]
[1736175705636,0.0075,3673.8,3673.1,0.005]
[1736175705841,3.0,3674.0,3673.1,0.005]
[1736175706040,0.02720495,3673.9,3673.1,0.005]
[1736175706236,0.02720495,3674.2,3673.1,0.16076]
[1736175706442,0.02720495,3674.2,3673.4,2.72227]
[1736175706717,0.02720495,3674.6,3673.1,0.10955279]
[1736175706995,0.0075,3673.5,3673.0,1.5526]
[1736175707199,3.0075,3673.7,3673.0,1.5526]
[1736175707342,0.02720495,3673.7,3673.0,1.5526]
[1736175707592,0.02720495,3674.4,3673.0,1.5526]
[1736175708043,0.02720495,3674.4,3673.1,0.02722486]
[1736175708250,0.0075,3674.2,3673.0,1.5526]
[1736175708423,0.03470495,3674.2,3673.0,1.5526]
[1736175708623,0.03470495,3674.2,3673.0,4.27516]
[1736175708624,0.02720495,3674.2,3673.0,4.27516]
[1736175708840,0.02720495,3674.6,3673.2,4.34902]
[1736175709000,0.02720495,3675.1,3674.1,1.6266]
[1736175709207,0.02720495,3675.1,3674.1,2.061441]
[1736175709406,0.02720495,3675.5,3674.2,0.02721633]
[1736175709604,0.02720495,3675.9,3674.6,4.15290281]
[1736175709972,0.02720495,3676.8,3675.8,2.72049]
[1736175710304,0.02720495,3676.8,3675.6,1.5219]
[1736175710580,1.1127525,3677.5,3676.3,4.15290281]
[1736175710581,0.02720495,3677.3,3676.3,4.15290281]
[1736175710706,0.02720495,3677.4,3677.1,1.528]
[1736175711224,0.02720495,3677.9,3677.2,2.71944]
[1736175711424,0.03220495,3678.4,3677.4,2.71931]
[1736175711632,0.005,3678.4,3677.5,0.02718987]
[1736175711831,0.005,3678.4,3678.3,2.71864]
[1736175712125,0.005,3678.4,3677.4,1.6597]
[1736175712641,3.0,3678.1,3676.7,1.6597]
[1736175712843,0.02720495,3678.0,3677.0,2.71958]
[1736175713163,0.0075,3677.9,3676.7,1.6597]
[1736175713465,0.02720495,3678.0,3677.2,2.71944]
[1736175713663,0.03220495,3678.4,3677.2,2.71944]
[1736175713967,0.03220495,3678.4,3677.3,4.18009441]
[1736175714126,0.005,3678.4,3677.9,2.71891]
[1736175714464,0.005,3678.4,3678.3,2.71864]
[1736175714765,0.005,3678.4,3678.2,0.02718383]
[1736175714973,0.005,3678.4,3676.9,1.6114]
[1736175715310,0.005,3678.4,3676.9,2.044515]
[1736175715513,0.0075,3678.3,3676.9,2.044515]
[1736175715723,2.75078495,3678.4,3676.9,2.044515]
[1736175715927,0.03220495,3678.4,3677.2,2.71943]
[1736175716209,0.03220495,3678.4,3676.9,2.044515]
[1736175716549,0.03220495,3678.4,3677.3,2.71937]
[1736175716712,0.03220495,3678.4,3677.1,2.71951]
[1736175717081,2.71879,3678.1,3676.9,2.044515]
[1736175717370,0.03220495,3678.4,3677.0,0.02719401]
[1736175717665,0.005,3678.4,3677.0,0.565]
[1736175717871,0.005,3678.4,3677.7,2.71908]
[1736175718027,0.005,3678.4,3678.1,2.71878]
[1736175718232,0.005,3678.4,3678.2,2.74586571]
[1736175718564,0.02720495,3680.1,3678.9,2.71815]
[1736175718933,0.02720495,3680.1,3679.1,2.71802]
[1736175719137,0.02720495,3680.1,3679.0,0.02717919]
[1736175719138,0.02720495,3680.1,3679.2,1.595]
[1736175719478,2.7174,3680.0,3679.2,1.595]
[1736175719615,0.0075,3679.8,3678.4,1.5907]
[1736175719817,3.0,3680.2,3678.4,2.22179744]
[1736175720012,2.7174,3680.0,3678.4,4.30926]
[1736175720249,0.03470495,3679.9,3678.7,2.71833]
[1736175720453,0.02720495,3679.9,3679.1,2.71803]
[1736175720662,3.0,3680.3,3678.8,2.74542894]
[1736175720808,0.03470495,3680.2,3678.7,4.15290281]
[1736175721010,2.75197495,3680.2,3678.7,0.57436028]
[1736175721335,2.75197495,3680.2,3678.8,0.02717916]
[1736175721510,0.03470495,3680.2,3678.8,0.02717916]
[1736175721717,0.02720495,3680.2,3678.5,0.02717915]
[1736175721967,3.0,3680.4,3678.4,1.5907]
[1736175722172,0.02720495,3680.3,3679.4,2.71781]
[1736175722369,2.71673,3680.9,3679.5,2.74491388]
[1736175722681,2.71632,3681.5,3679.6,1.5989]
[1736175722949,2.71622,3681.6,3679.7,2.71756]
[1736175723166,0.0075,3681.5,3679.6,1.5989]
[1736175723469,3.0,3680.5,3678.9,1.5989]
[1736175723668,0.0075,3680.8,3679.2,0.02717611]
[1736175723977,2.7168,3680.8,3679.3,2.71787]
[1736175724133,0.0075,3680.9,3679.5,2.71774]
[1736175724333,2.71654,3681.2,3679.7,1.5833]
[1736175724539,2.7162,3681.7,3680.3,2.71716]
[1736175724738,2.7162,3681.7,3680.4,0.02716822]
[1736175724956,0.0075,3681.5,3679.8,0.16104739]
[1736175725133,1.5673,3681.9,3679.9,0.565]
[1736175725333,2.71566,3682.4,3681.0,1.6157]
[1736175725531,1.5673,3683.3,3681.1,0.02716346]
[1736175725765,1.5673,3683.3,3681.2,4.26453947]
[1736175726155,2.71505,3683.2,3681.4,4.36325]
[1736175726316,2.7151,3683.1,3681.8,2.71606]
[1736175726521,0.0075,3683.0,3681.5,0.02715731]
[1736175726769,0.0075,3683.0,3681.6,3.18359573]
[1736175726971,0.0075,3683.0,3681.4,1.6469]
[1736175727291,0.015,3682.7,3680.3,1.618]
[1736175727418,0.0075,3681.8,3680.4,2.71704]
[1736175727628,3.0,3682.3,3680.6,2.71692]
[1736175727830,1.5903,3682.8,3680.8,1.5545]
[1736175728029,2.71509,3683.2,3681.2,4.26453947]
[1736175728299,2.71509,3683.2,3681.9,2.71597]
[1736175728474,0.005,3683.4,3681.9,1.64]
[1736175728780,0.005,3683.4,3682.3,2.71568]
[1736175728984,0.005,3683.4,3682.0,2.71585]
[1736175729195,2.71503,3683.2,3682.0,0.88293895]
[1736175729487,2.71503,3683.2,3682.1,0.02715547]
[1736175729642,2.71503,3683.2,3681.9,4.35595]
[1736175729643,0.1416618,3683.2,3681.9,1.64]
[1736175730070,2.71496,3683.3,3681.9,1.849]
[1736175730386,0.005,3683.4,3682.0,0.02715443]
[1736175730596,0.005,3683.4,3681.9,1.64]
[1736175730748,0.0125,3683.4,3681.9,1.64]
[1736175731084,0.0075,3682.3,3681.4,1.5693]
[1736175731283,0.0075,3682.4,3680.5,2.71698]
[1736175731584,1.6459,3682.8,3680.6,0.02716555]
[1736175731790,2.71554,3682.6,3681.1,1.5808]
[1736175731952,1.6459,3683.3,3681.5,2.71625]
[1736175732283,4.36086,3683.3,3682.1,2.71583]
[1736175732494,2.71496,3683.3,3681.7,4.26453947]
[1736175732673,2.71576,3682.3,3680.8,2.71677]
[1736175732853,2.7164,3681.4,3679.8,1.71474739]
[1736175733049,2.71619,3681.7,3679.8,4.43226739]
[1736175733255,3.0,3682.5,3680.0,1.5612]
[1736175733464,4.34857,3682.6,3680.4,2.71709]
[1736175733755,4.34857,3682.6,3680.0,1.7692]
[1736175733756,1.6331,3682.6,3680.5,2.74410502]
[1736175733995,2.71601,3681.9,3680.6,2.71693]
[1736175734207,2.71607,3681.8,3680.2,0.0075]
[1736175734413,2.71607,3681.8,3680.4,0.55]
[1736175734572,1.6331,3683.1,3681.0,4.26453947]
[1736175734776,2.71496,3683.3,3681.6,0.55]
[1736175734973,2.7148,3683.6,3681.8,1.5537]
[1736175735205,1.6331,3683.7,3682.1,4.26453947]
[1736175735413,4.24562,3684.3,3682.4,2.71562]
[1736175735635,1.5314,3684.3,3682.6,4.26453947]
[1736175735773,1.5314,3684.3,3683.1,2.71509]
[1736175735970,1.5314,3684.3,3683.2,0.02714757]
[1736175736170,1.5314,3684.3,3682.6,0.208]
[1736175736409,1.5314,3684.3,3683.0,2.71513]
[1736175736588,2.71419,3684.4,3683.2,1.5886]
[1736175736924,1.6462,3684.8,3683.2,1.5886]
[1736175736925,2.71397,3684.7,3683.3,2.74209602]
[1736175737124,1.6462,3684.8,3683.3,0.02714602]
[1736175737332,2.71414,3684.5,3683.2,1.5886]
[1736175737546,4.3601,3684.8,3683.3,2.74209603]
[1736175737673,1.6094,3685.4,3683.3,3.1479796]
[1736175737873,2.71359,3685.2,3683.8,2.71451]
[1736175738195,2.71359,3685.2,3683.3,0.4330696]
[1736175738196,1.6094,3685.4,3683.5,2.71474]
[1736175738403,1.6094,3685.4,3684.2,2.71426]
[1736175738595,1.6094,3685.4,3683.8,1.6553]
[1736175738596,2.7133,3685.6,3683.8,1.6553]
[1736175738927,4.36141,3686.4,3684.3,1.5488]
[1736175739127,2.71283,3686.2,3684.6,4.26453947]
[1736175739359,2.713,3686.0,3684.5,0.201]
[1736175739527,2.71291,3686.1,3684.6,6.97846947]
[1736175739834,2.71313,3685.8,3684.5,2.915]
[1736175740040,2.71313,3685.8,3684.5,3.36138]
[1736175740180,0.0075,3686.2,3684.5,0.201]
[1736175740382,2.71315,3685.8,3684.3,1.5488]
[1736175740589,2.7133,3685.6,3684.3,1.7498]
[1736175740897,3.0,3686.3,3684.4,0.55]
[1736175741108,3.0,3686.0,3684.5,0.22998]
[1736175741516,2.72026,3686.3,3684.8,2.71378]
[1736175741729,3.0,3686.2,3684.9,0.02713323]
[1736175742031,1.5678,3686.9,3685.0,1.5561]
[1736175742182,0.15678,3686.8,3685.1,0.76886]
[1736175742378,1.6009,3687.4,3685.3,0.5575]
[1736175742694,3.0,3687.1,3685.8,2.71308]
[1736175742895,2.8906899,3687.2,3686.0,1.599]
[1736175743234,0.1785399,3687.2,3686.1,0.22812609]
[1736175743433,0.1785399,3687.2,3686.7,4.26453947]
[1736175743634,0.1785399,3687.2,3687.0,2.71216]
[1736175743930,2.71115,3688.5,3687.1,2.73924567]
[1736175744300,4.26267,3689.0,3687.5,2.71184]
[1736175744506,4.26267,3689.0,3687.2,4.26453947]
[1736175744507,2.71055,3689.3,3687.7,4.34737]
[1736175744683,2.71055,3689.3,3687.9,2.71153]
[1736175744883,5.52064336,3689.4,3687.7,1.6357]
[1736175745127,2.71136,3688.2,3687.1,1.6261]
[1736175745389,3.0,3688.7,3685.7,4.26453947]
[1736175745585,3.0,3688.7,3686.1,0.201]
[1736175745586,3.0,3687.4,3686.1,0.201]
[1736175745979,3.0,3687.4,3685.8,1.6261]
[1736175745980,3.0,3687.6,3686.4,2.71266]
[1736175746196,3.0,3688.2,3686.2,35.201]
[1736175746448,2.71892,3688.1,3686.4,1.5944]
[1736175746620,2.71086,3688.9,3687.5,2.71184]
[1736175746826,1.5744,3689.1,3688.0,2.71146]
[1736175747020,5.52064336,3689.4,3687.3,3.0]
[1736175747021,5.52064336,3689.4,3689.0,35.0]
[1736175747381,5.52064336,3689.4,3688.1,0.201]
[1736175747617,5.52064336,3689.4,3688.2,3.28843738]
[1736175747944,8.23110336,3689.4,3689.3,35.0]
[1736175748631,11.23860336,3689.4,3689.3,35.0]
[1736175749136,5.52064336,3689.4,3689.3,35.0]
[1736175749356,7.03764336,3689.4,3689.3,35.0]
[1736175749486,10.03764336,3689.4,3689.3,35.0]
[1736175749982,10.04514336,3689.4,3689.3,35.0]
[1736175750183,0.0075,3688.8,3687.2,1.638]
[1736175750406,0.0075,3688.8,3685.1,0.21136]
[1736175750407,1.6211,3689.0,3686.6,1.638]
[1736175750687,2.71123,3688.4,3687.0,2.71221]
[1736175751000,0.015,3688.7,3686.6,1.638]
[1736175751347,2.71184,3687.6,3686.6,1.638]
[1736175751648,0.16286,3688.9,3686.7,0.02712007]
[1736175751844,0.16286,3688.9,3686.6,1.638]
[1736175751845,0.178396,3688.8,3687.6,1.6603]
[1736175751988,2.71108,3688.6,3687.6,1.6603]
[1736175752324,3.0075,3688.6,3686.5,1.5227]
[1736175752706,3.0,3688.6,3686.5,1.5227]
[1736175752877,2.71203,3687.3,3686.5,1.5227]
[1736175753031,2.71197,3687.4,3685.8,1.5227]
[1736175753228,3.0,3687.6,3685.1,2.92494]
[1736175753229,0.015,3687.0,3685.1,1.5227]
[1736175753434,2.71283,3686.2,3685.1,1.5227]
[1736175753776,7.38132,3686.2,3684.5,1.5664]
[1736175753974,2.71348,3685.3,3684.5,1.5664]
[1736175754257,4.661,3686.2,3684.5,1.5664]
[1736175754465,2.71334,3685.5,3684.5,1.994461]
[1736175754617,2.71347,3685.4,3684.5,1.5664]
[1736175754811,2.71347,3685.4,3685.3,35.0]
[1736175755042,2.72097,3685.4,3685.3,35.0]
[1736175755650,3.0075,3686.1,3685.3,35.0]
[1736175755816,2.71301,3686.0,3684.5,0.0075]
[1736175756130,2.71343,3685.4,3684.4,1.5224]
[1736175756328,3.0075,3686.1,3685.3,35.0]
[1736175756530,2.71305,3685.9,3685.3,35.0]
[1736175756749,1.661,3686.2,3683.9,1.5096]
[1736175756750,0.565,3686.1,3683.9,1.5096]
[1736175756952,3.0,3685.9,3684.2,2.71429]
[1736175757133,0.0075,3685.6,3684.0,3.0]
[1736175757456,2.71339,3685.5,3683.9,1.5096]
[1736175757617,0.0075,3685.5,3685.4,35.0]
[1736175757817,2.71339,3685.5,3685.4,35.0]
[1736175758050,5.71339,3685.5,3685.4,35.0]
[1736175758236,5.72839,3685.5,3685.4,35.0]
[1736175758436,5.72839,3685.5,3683.3,1.5543]
[1736175758437,2.71414,3684.4,3683.3,1.5543]
[1736175758919,3.0,3684.5,3683.3,1.5543]
[1736175759120,2.71368,3685.1,3683.3,1.5543]
[1736175759121,2.71327,3685.6,3684.3,2.7142]
[1736175759321,1.6612,3686.0,3685.5,35.0]
[1736175759657,2.71309,3685.9,3685.5,35.0]
[1736175759858,1.6612,3686.7,3684.8,0.201]
[1736175760059,1.6612,3687.2,3685.4,0.0075]
[1736175760263,4.37328,3687.2,3687.1,35.0]
[1736175760660,1.6612,3688.0,3687.1,35.0]
[1736175760863,3.0,3687.2,3686.5,1.5543]
[1736175761067,2.71217,3687.1,3685.8,1.5543]
[1736175761283,2.71967,3687.1,3687.0,35.0]
[1736175761572,0.0075,3687.1,3687.0,35.0]
[1736175761752,3.0,3687.2,3687.0,35.0]
[1736175761922,5.92573947,3688.0,3685.9,0.201]
[1736175761923,3.0,3687.9,3685.9,0.201]
[1736175762123,0.565,3687.2,3685.8,1.5543]
[1736175762321,0.565,3687.2,3685.1,0.201]
[1736175762322,0.0075,3686.4,3685.2,1.5039]
[1736175762522,3.0,3687.0,3686.3,35.0]
[1736175762748,7.28797,3686.4,3686.3,35.0]
[1736175762960,2.72069,3685.7,3684.6,1.5039]
[1736175763262,0.0075,3685.7,3684.7,0.02713652]
[1736175763464,2.71304,3685.9,3685.6,35.0]
[1736175763670,3.0,3686.0,3685.6,35.0]
[1736175763876,3.0,3686.2,3685.0,2.71367]
[1736175764022,0.0075,3687.3,3685.1,0.02713286]
[1736175764220,2.71247,3686.7,3684.9,2.71374]
[1736175764544,4.22791,3687.2,3685.2,1.5089]
[1736175764762,4.22791,3687.2,3687.1,35.0]
[1736175764763,7.24288,3687.2,3687.1,35.0]
[1736175764924,7.23538,3687.2,3687.1,35.0]
[1736175765318,7.24288,3687.2,3687.1,35.0]
[1736175766054,7.24288,3687.2,3685.2,1.5089]
[1736175766055,0.0075,3686.2,3685.2,1.5089]
[1736175766229,2.71282,3686.2,3684.5,2.714]
[1736175766563,3.0,3686.1,3684.8,2.7138]
[1736175766724,3.0075,3686.5,3684.6,0.201]
[1736175766931,3.0,3685.9,3683.8,1.6182]
[1736175767163,2.71414,3684.5,3683.3,1.6182]
[1736175767467,0.015,3684.5,3683.3,1.6182]
[1736175767718,2.71452,3683.9,3683.3,1.6182]
[1736175767878,3.0,3684.5,3682.7,1.5335]
[1736175768025,3.0,3684.1,3682.7,1.5335]
[1736175768225,2.71438,3684.1,3682.7,1.5335]
[1736175768429,1.5488,3684.6,3683.1,2.71508]
[1736175768631,2.71415,3684.4,3683.1,2.71508]
[1736175768827,3.0,3684.2,3682.9,2.71524]
[1736175769023,3.0,3684.2,3683.1,2.71508]
[1736175769268,0.0075,3684.1,3682.9,0.751413]
[1736175769568,1.6067,3685.2,3683.3,1.6281]
[1736175769872,1.6067,3685.2,3683.4,0.55]
[1736175770070,0.25,3686.9,3683.3,5.89263947]
[1736175770071,2.71321,3685.7,3683.3,5.89263947]
[1736175770226,2.71296,3686.0,3683.7,2.71459]
[1736175770423,2.71351,3685.3,3683.8,2.71451]
[1736175770628,1.6176,3686.2,3684.2,0.5575]
[1736175770876,4.33047,3686.2,3685.0,1.5439]
[1736175771056,2.71262,3686.5,3685.2,2.71351]
[1736175771262,0.0075,3686.0,3685.0,1.5439]
[1736175771449,2.71258,3686.6,3685.4,2.7134]
[1736175771643,1.5155,3687.3,3685.5,0.02713004]
[1736175771993,1.5155,3687.8,3686.6,2.71248]
[1736175772129,2.71132,3688.3,3687.0,2.71219]
[1736175772324,2.63438996,3688.7,3687.1,0.02711853]
[1736175772522,5.34536996,3688.7,3687.1,0.30104914]
[1736175772775,5.34536996,3688.7,3687.7,2.71171]
[1736175772776,2.63438996,3688.7,3687.7,2.71171]
[1736175772969,1.10858996,3688.7,3687.7,0.02711396]
[1736175773274,1.10858996,3688.7,3687.7,2.73880396]
[1736175773430,5.71061,3689.3,3687.7,0.02711396]
[1736175773767,2.71061,3689.2,3687.9,2.71156]
[1736175774167,3.81880996,3689.8,3687.5,1.727]
[1736175774168,3.0075,3689.1,3687.5,1.727]
[1736175774488,3.0075,3689.1,3686.4,1.6277]
[1736175774489,1.085281,3689.1,3686.4,1.6277]
[1736175774626,3.0,3688.7,3687.3,2.71196]
[1736175774826,3.0,3689.3,3687.5,1.5258]
[1736175775072,2.71114,3688.5,3687.5,1.5258]
[1736175775299,3.0,3688.4,3687.5,1.5258]
[1736175775644,2.7112,3688.4,3687.5,1.5258]
[1736175776475,3.0075,3688.4,3687.5,1.5258]
[1736175776774,0.0075,3688.5,3687.5,1.5258]
[1736175776928,3.0,3688.4,3687.5,1.5258]
[1736175777272,2.71122,3688.4,3687.0,2.7122]
[1736175777440,0.0075,3688.5,3686.9,1.7601]
[1736175777642,2.7114,3688.2,3686.9,1.7601]
[1736175778176,3.0,3687.9,3686.3,1.6399]
[1736175778371,0.0075,3687.5,3686.3,1.6399]
[1736175778875,1.6281,3688.2,3686.3,1.6399]
[1736175779092,3.0,3688.1,3686.3,1.6399]
[1736175779391,3.0,3688.4,3685.7,1.6399]
[1736175779392,3.015,3687.1,3685.7,1.6399]
[1736175779544,2.71251,3686.7,3685.2,4.35343]
[1736175779742,4.81453947,3688.0,3685.3,0.02712923]
[1736175779948,2.71242,3686.8,3685.2,1.6399]
[1736175780244,2.7123,3686.9,3685.3,0.198]
[1736175780447,1.6281,3687.4,3686.0,2.71295]
[1736175780692,2.71163,3687.9,3686.1,0.02712524]
[1736175780887,4.33352,3688.1,3686.2,0.02711917]
[1736175781186,1.46470374,3688.9,3687.1,2.7121]
[1736175781385,2.71086,3688.9,3687.6,1.5971]
[1736175781587,1.10858996,3689.0,3687.9,2.71156]
[1736175781792,1.10858996,3689.0,3688.2,2.71132]
[1736175781989,1.10858996,3689.0,3688.3,0.02710993]
[1736175782164,1.085253,3689.3,3688.4,2.71118]
[1736175782345,2.7101,3689.9,3688.8,1.5295]
[1736175782547,1.084861,3690.6,3688.9,2.73790647]
[1736175782823,2.70995,3690.1,3688.9,2.73790647]
[1736175782991,2.70954,3690.7,3688.9,2.73790647]
[1736175783193,2.7099,3690.2,3688.9,2.73790647]
[1736175783512,0.0075,3690.1,3688.9,2.73790647]
[1736175783852,2.71745,3690.1,3688.9,2.7108]
[1736175784438,4.24634,3690.7,3688.8,1.5295]
[1736175784439,2.71052,3689.4,3688.8,1.5295]
[1736175784566,3.55,3690.2,3688.1,1.5652]
[1736175784765,0.015,3689.5,3688.1,1.5652]
[1736175785002,2.71135,3688.2,3687.6,1.5652]
[1736175785202,2.71098,3688.7,3687.6,1.5652]
[1736175785511,2.71111,3688.6,3687.6,1.5652]
[1736175785664,3.0,3688.6,3687.6,1.5652]
[1736175785873,2.711,3688.7,3687.6,1.5652]
[1736175786118,3.0,3688.6,3687.6,1.5652]
[1736175786415,3.0,3689.1,3687.6,1.5652]
[1736175786778,0.0075,3688.3,3687.6,1.5652]
[1736175787315,3.0,3688.6,3687.6,1.5652]
[1736175787617,2.71067,3689.2,3687.8,2.71162]
[1736175787780,2.71061,3689.3,3687.9,0.0271116]
[1736175787967,1.5368,3689.6,3687.6,1.5652]
[1736175788170,2.71087,3688.9,3687.6,4.27698]
[1736175788367,2.71129,3688.3,3687.6,1.5652]
[1736175788620,2.71096,3688.8,3687.6,1.5652]
[1736175788765,3.0,3689.1,3687.6,1.5652]
[1736175789111,2.71144,3688.1,3686.5,2.71254]
[1736175789293,2.71144,3688.1,3686.4,1.5182]
[1736175789294,3.0075,3688.3,3686.4,1.5182]
[1736175789614,1.5368,3689.4,3686.7,0.0075]
[1736175789791,1.5368,3689.4,3687.5,1.5182]
[1736175789792,2.71061,3689.2,3687.5,1.5182]
[1736175790116,3.565,3689.0,3687.5,1.5182]
[1736175790274,2.71158,3687.9,3686.9,1.6402]
[1736175790477,2.71141,3688.2,3686.9,4.35249]
[1736175790769,0.015,3688.5,3686.9,1.6402]
[1736175790970,2.71164,3687.8,3686.9,1.6402]
[1736175791204,2.71174,3687.7,3686.9,1.6402]
[1736175791510,1.5368,3688.6,3687.0,0.02712103]
[1736175791709,1.5368,3689.2,3687.1,2.71215]
[1736175791907,0.0075,3689.1,3687.3,2.71198]
[1736175792098,2.71087,3688.9,3687.4,0.02711514]
[1736175792300,2.71069,3689.1,3687.0,1.5269]
[1736175792472,4.24745,3689.2,3688.0,1.5269]
[1736175792672,3.0,3688.9,3688.0,1.5269]
[1736175792911,0.0075,3689.1,3688.0,1.5269]
[1736175793086,2.71084,3688.9,3688.0,1.5269]
[1736175793282,3.0,3689.0,3688.1,0.02711272]
[1736175793596,3.0,3689.0,3688.0,1.5269]
[1736175793906,3.0,3689.0,3687.5,4.35853]
[1736175794113,2.71079,3689.0,3687.7,2.71168]
[1736175794417,1.5368,3690.2,3687.9,1.5706]
[1736175794716,1.5368,3690.7,3689.1,2.71066]
[1736175794876,1.5368,3690.7,3688.8,0.02710357]
[1736175795070,1.30365599,3690.9,3689.5,2.71032]
[1736175795298,0.1785399,3690.9,3689.5,0.02710087]
[1736175795489,2.70966,3690.5,3689.3,4.25054]
[1736175795817,2.71707,3690.7,3689.3,1.54]
[1736175795972,0.0075,3690.7,3689.3,1.54]
[1736175796173,0.0075,3690.8,3689.3,1.54]
[1736175796373,5.70958,3690.6,3689.3,1.54]
[1736175796577,0.0075,3690.5,3689.3,1.54]
[1736175796896,2.7098,3690.4,3689.3,1.54]
[1736175797074,3.0,3690.3,3689.3,1.54]
[1736175797277,2.70987,3690.3,3689.3,1.54]
[1736175797480,5.70951,3690.7,3689.3,1.54]
[1736175797481,2.71003,3690.0,3689.3,1.54]
[1736175797686,0.1785399,3690.9,3689.4,0.02710396]
[1736175797891,2.70961,3690.6,3689.4,2.73756396]
[1736175798119,3.0,3690.5,3689.4,2.73756396]
[1736175798290,2.70944,3690.8,3689.4,0.02710396]
[1736175798489,2.70944,3690.8,3689.6,2.71029]
[1736175798696,2.70944,3690.8,3689.7,0.0270994]
[1736175798876,3.0,3690.6,3689.7,0.0270994]
[1736175799322,0.1785399,3690.9,3690.0,2.70996]
[1736175799482,0.1785399,3690.9,3690.4,1.5709]
[1736175799677,0.1785399,3690.9,3690.5,0.02709398]
[1736175800023,0.1785399,3690.9,3690.4,1.5709]
[1736175802788,0.1785399,3690.9,3688.9,1.5318]
[1736175803024,2.71694,3690.8,3689.1,2.71068]
[1736175803292,0.1785399,3690.9,3689.4,2.71046]
[1736175803500,0.1785399,3690.9,3689.6,1.5318]
[1736175803726,0.1785399,3690.9,3690.0,2.70998]
[1736175803906,0.1785399,3690.9,3690.1,0.02709574]
[1736175804105,0.1785399,3690.9,3690.0,2.70998]
[1736175804330,0.1785399,3690.9,3689.6,1.5318]
[1736175804499,0.1785399,3690.9,3690.3,2.70979]
[1736175804994,0.1785399,3690.9,3690.1,2.70995]
[1736175805311,0.1785399,3690.9,3689.7,1.6245]
[1736175805724,0.1785399,3690.9,3689.9,2.71008]
[1736175805919,0.1785399,3690.9,3690.0,0.02709633]
[1736175806120,0.1785399,3690.9,3689.7,1.6245]
[1736175806323,2.70955,3690.7,3689.7,1.6245]
[1736175806523,2.70962,3690.6,3689.7,1.6245]
[1736175806892,2.70967,3690.5,3689.7,1.6245]
[1736175807095,2.7096,3690.6,3689.7,1.6245]
[1736175807666,2.71046,3689.5,3688.2,2.71133]
[1736175807968,0.0075,3689.5,3687.7,1.6092]
[1736175808168,2.71107,3688.6,3687.7,1.6092]
[1736175808290,2.71091,3688.8,3687.7,1.6092]
[1736175808807,2.71069,3689.1,3687.8,0.02711335]
[1736175809016,2.70951,3690.7,3687.7,1.6092]
[1736175809236,2.71068,3689.2,3688.1,2.7114]
[1736175809544,2.71024,3689.7,3688.1,2.7114]
[1736175809545,2.71027,3689.7,3688.1,0.27114]
[1736175809705,0.0075,3689.8,3688.3,2.71122]
[1736175809907,0.0075,3689.8,3688.4,2.71118]
[1736175810107,0.0075,3689.8,3688.5,1.6092]
[1736175810551,2.71,3690.1,3688.6,0.02710727]
[1736175810850,0.1785399,3690.9,3689.4,1.6625]
[1736175811071,0.1785399,3690.9,3690.1,2.70994]
[1736175811215,0.1785399,3690.9,3689.6,2.71032]
[1736175811216,0.1785399,3690.9,3690.8,35.0]
[1736175811537,2.8878999,3690.9,3690.8,35.0]
[1736175811711,2.8953999,3690.9,3690.8,35.0]
[1736175812106,5.8953999,3690.9,3690.8,35.0]
[1736175813109,0.1785399,3690.9,3690.8,35.0]
[1736175813307,2.8878999,3690.9,3690.8,35.0]
[1736175813507,0.1785399,3690.9,3690.8,35.0]
[1736175814426,2.8878999,3690.9,3690.8,35.0]
[1736175814815,0.1785399,3690.9,3690.8,35.0]
[1736175815032,5.8953999,3690.9,3690.8,35.0]
[1736175815948,5.8878999,3690.9,3690.8,35.0]
[1736175816147,2.8878999,3690.9,3690.8,35.0]
[1736175816333,0.1785399,3690.9,3690.8,35.0]
[1736175817308,2.8953999,3690.9,3690.8,35.0]
[1736175817509,2.8878999,3690.9,3690.8,35.0]
[1736175818107,2.8953999,3690.9,3690.8,35.0]
[1736175818313,4.3957999,3690.9,3690.8,35.0]
[1736175818559,4.9532999,3690.9,3690.8,35.0]
[1736175818750,4.9532999,3690.9,3688.8,0.192]
[1736175818751,0.0075,3690.3,3688.9,1.5429]
[1736175818969,0.0075,3689.7,3688.4,1.5429]
[1736175819185,2.71081,3689.0,3688.4,1.5429]
[1736175819455,0.0075,3689.3,3687.7,1.08826835]
[1736175819654,0.5575,3689.5,3687.7,1.08826835]